fUSD/lending_fUSD_20240804
["ID","MTS","AMOUNT","RATE_DAILY","PERIOD"]
[334170351,1722807018712,-1000.0,0.00032679,60]
[334170352,1722807018737,-1039.45,0.00032679,60]
[334170353,1722807018761,-150.0,0.00032679,120]
[334170354,1722807018785,-1235.0,0.00032679,30]
[334170355,1722807018810,-988.0,0.00032679,35]
[334170356,1722807018835,-2999.999995,0.00032679,120]
[334170357,1722807018863,-530.02540096,0.00032679,60]
[334170358,1722807018888,-2158.88042958,0.00032679,120]
[334170359,1722807018917,-837.40987043,0.00032679,30]
[334170360,1722807018942,-1000.0,0.00032679,30]
[334170361,1722807018968,-155.12893807,0.00032679,120]
[334170362,1722807018993,-262.14354387,0.00032679,120]
[334170363,1722807019018,-416.25259752,0.00032679,120]
[334170364,1722807019044,-158.4886167,0.00032679,30]
[334170365,1722807019068,-62118.0,0.00032679,30]
[334170366,1722807019094,-1918.49541057,0.00032679,120]
[334170367,1722807019124,-5000.0,0.00032679,32]
[334170368,1722807019150,-40000.0,0.00032679,55]
[334170369,1722807019177,-5020.30372553,0.00032679,120]
[334170370,1722807019205,-2748.65338505,0.00032679,36]
[334170371,1722807019250,-22480.18923061,0.00032679,30]
[334170372,1722807019278,-249.95927863,0.00032679,60]
[334170373,1722807019304,-152.0,0.00032679,120]
[334170374,1722807019333,-223.13005748,0.00032679,30]
[334170375,1722807019359,-391.49379078,0.00032679,30]
[334170376,1722807019390,-229.62665032,0.00032679,120]
[334170377,1722807019417,-527.48400158,0.00032679,90]
[334170378,1722807019444,-1533.52069795,0.00032679,30]
[334170379,1722807019471,-1600.0,0.00032679,120]
[334170380,1722807019498,-12255.15024424,0.00032679,120]
[334170381,1722807019524,-5079.74258315,0.00032679,30]
[334170382,1722807019551,-6773.5153035,0.00032679,30]
[334170383,1722807019577,-17235.17081228,0.00032679,30]
[334170384,1722807019603,-1324401.77073843,0.00032679,30]
[334170385,1722807019628,-9352.56424892,0.00032679,30]
[334170386,1722807019654,-5103.01559717,0.00032679,30]
[334170387,1722807019685,-12281.00523549,0.00032679,30]
[334170388,1722807019711,-23361.78445576,0.00032679,30]
[334170389,1722807019737,-12609.84358739,0.00032679,30]
[334170390,1722807019764,-18724.10894073,0.00032679,30]
[334170391,1722807019790,-1296.9936121,0.00032679,30]
[334170392,1722807019817,-3403.87,0.00032679,120]
[334170393,1722807019844,-2000.0,0.00032679,30]
[334170394,1722807019870,-2000.0,0.00032679,30]
[334170395,1722807019897,-2000.0,0.00032679,30]
[334170396,1722807019925,-709.18233383,0.00032679,120]
[334170397,1722807019950,-2000.0,0.00032679,30]
[334170398,1722807019977,-2000.0,0.00032679,30]
[334170399,1722807020003,-5000.0,0.00032679,31]
[334170400,1722807020031,-2075911.98779038,0.00032679,30]
[334170402,1722807025728,-560259.52190613,0.00032679,30]
[334170403,1722807025756,-100750.48047012,0.00032679,30]
[334170404,1722807025781,-2000.0,0.00032679,120]
[334170405,1722807025806,-11921.37017179,0.00032679,30]
[334170406,1722807025831,-990.6,0.00032679,30]
[334170407,1722807025855,-193.0,0.00032679,30]
[334170408,1722807025880,-154.29163529,0.00032679,30]
[334170409,1722807025906,-154.6413715,0.00032679,30]
[334170410,1722807025935,-154.47499007,0.00032679,120]
[334170411,1722807025961,-10404.62578475,0.00032679,120]
[334170412,1722807025988,-872.96789405,0.00032679,30]
[334170413,1722807026016,-152.76537146,0.00032679,90]
[334170414,1722807026040,-314.94614533,0.00032679,30]
[334170415,1722807026064,-432.08329298,0.00032679,120]
[334170416,1722807026089,-271.17501992,0.00032679,30]
[334170417,1722807026116,-30000.0,0.00032679,90]
[334170418,1722807026142,-30000.0,0.00032679,60]
[334170419,1722807026166,-30000.0,0.00032679,60]
[334170420,1722807026191,-49425.70654722,0.00032679,30]
[334170421,1722807026216,-5945.84854742,0.00032679,120]
[334170422,1722807026242,-171695.78446595,0.00032679,30]
[334170423,1722807026268,-362.02538082,0.00032679,46]
[334170424,1722807026293,-4440.0,0.00032679,30]
[334170425,1722807026318,-27730.0,0.00032679,30]
[334170426,1722807026343,-1832.0,0.00032679,120]
[334170427,1722807026368,-2228.58100025,0.00032679,120]
[334170428,1722807026756,-400.69633689,0.00032679,120]
[334170429,1722807026796,-3142.2,0.00032679,120]
[334170430,1722807026822,-5000.0,0.00032679,30]
[334170431,1722807026849,-2251.50219692,0.00032679,120]
[334170432,1722807026876,-1450.51647197,0.00032679,120]
[334170433,1722807026901,-1337.199999,0.00032679,30]
[334170434,1722807026932,-2000.0,0.00032679,30]
[334170435,1722807026959,-5613.5213,0.00032679,30]
[334170436,1722807026985,-400.0,0.00032679,30]
[334170437,1722807027014,-400.0,0.00032679,30]
[334170438,1722807027040,-681.203545,0.00032679,30]
[334170439,1722807027065,-1000.0,0.00032679,30]
[334170440,1722807027091,-1000.0,0.00032679,30]
[334170441,1722807027118,-1000.0,0.00032679,30]
[334170442,1722807027143,-1000.0,0.00032679,30]
[334170443,1722807027168,-1000.0,0.00032679,30]
[334170444,1722807027194,-1000.0,0.00032679,30]
[334170445,1722807027220,-1000.0,0.00032679,30]
[334170446,1722807027246,-1000.0,0.00032679,30]
[334170447,1722807027272,-1000.0,0.00032679,30]
[334170448,1722807027298,-1000.0,0.00032679,30]
[334170449,1722807027323,-1000.0,0.00032679,30]
[334170450,1722807027349,-1000.0,0.00032679,30]
[334170451,1722807027374,-1000.0,0.00032679,30]
[334170452,1722807027399,-1000.0,0.00032679,30]
[334170453,1722807027424,-1000.0,0.00032679,30]
[334170454,1722807027449,-1000.0,0.00032679,30]
[334170455,1722807027475,-1000.0,0.00032679,30]
[334170456,1722807027501,-1000.0,0.00032679,30]
[334170457,1722807027526,-1000.0,0.00032679,30]
[334170458,1722807027552,-1000.0,0.00032679,30]
[334170459,1722807027577,-1000.0,0.00032679,30]
[334170460,1722807027606,-1000.0,0.00032679,30]
[334170461,1722807027633,-1000.0,0.00032679,30]
[334170462,1722807027660,-1000.0,0.00032679,30]
[334170463,1722807027686,-1686.583585,0.00032679,30]
[334170476,1722807032780,-300.0,0.000108,3]
[334170477,1722807032790,-404.5706,0.000109,3]
[334170478,1722807032866,-295.4294,0.000109,3]
[334170479,1722807032876,-525.26,0.00010959,2]
[334170480,1722807032886,-154.77,0.0001099,2]
[334170481,1722807032896,-88.79318234,0.00010997,2]
[334170482,1722807032907,-80.80645638,0.00010997,2]
[334170483,1722807032916,-300.0,0.00010999,2]
[334170484,1722807032930,-284.36080037,0.00010999,2]
[334170485,1722807032940,-5331.78304083,0.00011,2]
[334170486,1722807032955,-43028.56329803,0.00011,2]
[334170487,1722807032972,-3410.4,0.00011,2]
[334170488,1722807032987,-2480.12615262,0.00011,2]
[334170489,1722807032999,-6004.92195362,0.00011,2]
[334170490,1722807033009,-3149.9999975,0.00011,2]
[334170491,1722807033024,-323.745,0.00011,2]
[334170492,1722807033078,-959.92124955,0.00011,2]
[334170494,1722807033164,-1171.66,0.00011,2]
[334170496,1722807033179,-387.02289021,0.00011,2]
[334170636,1722807039520,-3483.08,0.00032876,40]
[334170640,1722807039554,-3483.20410239,0.00032876,40]
[334170645,1722807039592,-1000.0,0.00041096,120]
[334170649,1722807039620,-1027539.45188317,0.00042,30]
[334170656,1722807039647,-400.0,0.00042,30]
[334170662,1722807039673,-1000.0,0.00042052,30]
[334170669,1722807039699,-2024.0,0.00042054,90]
[334170674,1722807039725,-2024.0,0.00042191,90]
[334170677,1722807039751,-500.0,0.00042192,30]
[334170680,1722807039777,-500.0,0.00042192,30]
[334170684,1722807039802,-1000.0,0.000422,30]
[334170688,1722807039828,-1000.0,0.00042227,30]
[334170694,1722807039854,-7455.72456545,0.00042242,120]
[334170697,1722807039879,-2024.0,0.00042328,90]
[334170701,1722807039905,-1000.0,0.00042402,30]
[334170704,1722807039932,-1250.0,0.00042465,120]
[334170708,1722807039957,-2024.0,0.00042465,90]
[334170711,1722807039989,-1000.0,0.00042484,36]
[334170715,1722807040019,-1000.0,0.000425,30]
[334170718,1722807040046,-2110.0,0.000425,30]
[334170722,1722807040071,-2500.0,0.000425,120]
[334170726,1722807040097,-2366.00939982,0.000425,120]
[334170729,1722807040122,-1300.0,0.000425,120]
[334170733,1722807040148,-509.55606592,0.00042508,120]
[334170737,1722807040173,-1000.0,0.00042577,30]
[334170740,1722807040199,-2024.0,0.00042602,90]
[334170744,1722807040225,-1250.0,0.00042739,30]
[334170747,1722807040250,-2024.0,0.00042739,90]
[334170751,1722807040275,-187.56666667,0.0004274,120]
[334170755,1722807040302,-500.0,0.0004274,30]
[334170758,1722807040328,-500.0,0.0004274,30]
[334170762,1722807040355,-1000.0,0.00042752,30]
[334170766,1722807040381,-1000.0,0.000428,30]
[334170770,1722807040408,-10382.15519681,0.000428,60]
[334170773,1722807040434,-471098.90334858,0.000428,60]
[334170777,1722807040460,-5499.16428925,0.000428,120]
[334170781,1722807040487,-186549.26802016,0.000428,60]
[334170785,1722807040516,-3207.9767,0.000428,60]
[334170788,1722807040542,-3210.65,0.000428,60]
[334170792,1722807040568,-50607.28944336,0.000428,60]
[334170795,1722807040594,-2024.0,0.00042876,90]
[334170799,1722807040622,-150.0,0.00042879,120]
[334170803,1722807040648,-217049.9693805,0.0004288,30]
[334170806,1722807040674,-150.0,0.00042891,120]
[334170810,1722807040700,-1021.37523434,0.000429,120]
[334170813,1722807040725,-168696.80628975,0.000429,30]
[334170817,1722807040757,-29294.80961816,0.000429,60]
[334170821,1722807040784,-150.0,0.00042906,120]
[334170824,1722807040811,-1000.0,0.00042928,30]
[334170828,1722807040837,-3672.5,0.00042943,94]
[334170829,1722807040864,-2755.0,0.00042978,62]
[334170830,1722807040890,-330.66799882,0.00042998,120]
[334170831,1722807040916,-1000.0,0.00042999,120]
[334170833,1722807040949,-50000.0,0.00043,43]
[334170836,1722807040978,-50000.0,0.00043,33]
[334170840,1722807041007,-2344.63987846,0.00043,30]
[334170843,1722807041032,-2110.0,0.00043,30]
[334170847,1722807041060,-2700.0,0.00043,120]
[334170853,1722807041085,-243.17601775,0.00043,120]
[334170858,1722807041110,-425.88047254,0.00043,30]
[334170861,1722807041134,-35865.0,0.00043,60]
[334170865,1722807041160,-2019.5,0.00043,120]
[334170868,1722807041184,-2000.0,0.00043,120]
[334170872,1722807041210,-2500.0,0.00043,120]
[334170876,1722807041236,-4097.74580369,0.00043,60]
[334170880,1722807041266,-1600.0,0.00043,30]
[334170883,1722807041292,-10010.6265,0.00043,120]
[334170887,1722807041318,-697.0,0.00043,60]
[334170890,1722807041344,-530.39,0.00043,120]
[334170894,1722807041369,-7632.18459096,0.00043,30]
[334170897,1722807041394,-549.42559512,0.00043,30]
[334170901,1722807041421,-35000.0,0.00043,30]
[334170905,1722807041447,-20488.0,0.00043,60]
[334170909,1722807041473,-4503.00439384,0.00043,120]
[334170912,1722807041502,-2901.03294395,0.00043,120]
[334170916,1722807041527,-1422.87359404,0.00043,120]
[334170920,1722807041554,-2987.05555463,0.00043,60]
[334170923,1722807041579,-19333.0,0.00043,120]
[334170927,1722807041604,-19333.0,0.00043,120]
[334170930,1722807041630,-19333.0,0.00043,120]
[334170934,1722807041654,-19333.0,0.00043,120]
[334170962,1722807041921,-19333.0,0.00043,120]
[334170966,1722807041951,-19333.0,0.00043,120]
[334170969,1722807041976,-1690.123396,0.00043,30]
[334170972,1722807042003,-2277.77,0.00043,30]
[334170976,1722807042029,-2024.0,0.00043013,90]
[334170979,1722807042054,-151.0,0.00043068,120]
[334170983,1722807042079,-657.78562,0.00043088,30]
[334170986,1722807042105,-1000.0,0.000431,30]
[334170990,1722807042130,-1000.0,0.00043103,30]
[334170993,1722807042155,-2024.0,0.0004315,90]
[334170997,1722807042180,-410.0,0.00043186,120]
[334171000,1722807042205,-1000.35287711,0.0004325,30]
[334171004,1722807042232,-150.0,0.00043251,120]
[334171008,1722807042258,-410.0,0.00043266,120]
[334171012,1722807042284,-1000.0,0.00043278,30]
[334171015,1722807042311,-1250.0,0.00043287,120]
[334171019,1722807042336,-2024.0,0.00043287,90]
[334171022,1722807042361,-657.78562,0.00043288,30]
[334171026,1722807042387,-620.83582086,0.00043288,120]
[334171029,1722807042412,-549.92117489,0.00043288,30]
[334171034,1722807042438,-500.0,0.00043288,30]
[334171040,1722807042464,-202.03094414,0.0004333,120]
[334171043,1722807042489,-2024.0,0.00043424,90]
[334171047,1722807042518,-1000.0,0.00043425,120]
[334171053,1722807042543,-187379.14958958,0.00043427,120]
[334171060,1722807042569,-14055.73568616,0.00043427,120]
[334171066,1722807042596,-2000.0,0.00043427,30]
[334171073,1722807042622,-1179486.84572313,0.0004344,30]
[334171145,1722807043154,-1528.96383304,0.00011,2]
[334171152,1722807043210,-1275677.2004225,0.00011,2]
[334171155,1722807043222,-5719.11056327,0.00011,2]
[334171159,1722807043232,-23941.81902539,0.00011,2]
[334171165,1722807043266,-565.96836744,0.00011,2]
[334171171,1722807043319,-9081.07678052,0.00011,2]
[334171174,1722807043331,-1297.34844736,0.00011,2]
[334171178,1722807043363,-6045.54035109,0.00011,2]
[334171181,1722807043376,-803.19034972,0.00011,2]
[334171207,1722807043888,-985.04970203,0.00010997,2]
[334171209,1722807043897,-723038.92647533,0.00011,2]
[334171210,1722807043906,-6249.44,0.00011,2]
[334171212,1722807043915,-420.0,0.00012087,2]
[334171214,1722807043929,-1049.57124552,0.00012995,2]
[334171216,1722807043938,-587.0,0.00013282,2]
[334171218,1722807043948,-1226.39080972,0.00013773,2]
[334171220,1722807043957,-271587.751949,0.000138,2]
[334171221,1722807043967,-156.6612078,0.00013873,2]
[334171223,1722807043977,-234.18,0.00013973,2]
[334171225,1722807043986,-436249.88586147,0.00014,4]
[334171227,1722807044000,-823.0,0.00014595,2]
[334171229,1722807044009,-44499.44965473,0.0001499,2]
[334171231,1722807044019,-499.99,0.00015893,2]
[334171233,1722807044029,-1000.0,0.00015893,2]
[334171235,1722807044039,-157.27011436,0.000159,2]
[334171237,1722807044050,-1152.0,0.00016039,2]
[334171239,1722807044060,-777.0,0.000161,2]
[334171241,1722807044069,-167.15,0.0001646,2]
[334171243,1722807044078,-2000.0,0.00016596,2]
[334171245,1722807044087,-10327.00008,0.00016711,2]
[334171247,1722807044097,-1000.0,0.00017551,2]
[334171249,1722807044109,-1613.0,0.00017625,2]
[334171251,1722807044120,-864.02247026,0.00018547,2]
[334171253,1722807044131,-1226.39080972,0.00018754,2]
[334171255,1722807044141,-156.6612078,0.00018804,2]
[334171257,1722807044152,-265.0,0.00019368,2]
[334171259,1722807044162,-250.0,0.00019382,2]
[334171261,1722807044172,-168.12,0.00019493,2]
[334171263,1722807044181,-264.23719677,0.00019599,2]
[334171265,1722807044190,-176.0,0.00019841,2]
[334171267,1722807044199,-250.0,0.00019909,2]
[334171268,1722807044208,-22679.94,0.00020093,2]
[334171270,1722807044217,-170.36,0.00020098,2]
[334171272,1722807044226,-234.18,0.00020447,2]
[334171274,1722807044235,-150.0,0.00020762,4]
[334171276,1722807044244,-947.92262883,0.00020999,2]
[334171278,1722807044254,-20054.79002496,0.00021,4]
[334171280,1722807044263,-20061.11481669,0.00021,4]
[334171282,1722807044272,-20061.11132974,0.00021,4]
[334171284,1722807044282,-20061.12026603,0.00021,4]
[334171286,1722807044292,-281.6,0.00021705,2]
[334171288,1722807044301,-133936.55843169,0.0002188,2]
[334171290,1722807044310,-2126.0,0.00022,5]
[334171292,1722807044320,-3500.0,0.00022,2]
[334171294,1722807044329,-3500.0,0.00022,7]
[334171296,1722807044338,-3500.0,0.00022,2]
[334171298,1722807044348,-150.0,0.00022441,2]
[334171300,1722807044357,-150.0,0.00022498,2]
[334171302,1722807044367,-150.0,0.00022507,2]
[334171304,1722807044376,-1100.0,0.000226,8]
[334171306,1722807044386,-150.0,0.0002268,2]
[334171307,1722807044395,-1500.0,0.000227,8]
[334171309,1722807044404,-150.0,0.0002271,2]
[334171310,1722807044414,-50000.0,0.00022738,4]
[334171311,1722807044424,-50000.0,0.00022738,4]
[334171312,1722807044433,-150.0,0.00022742,2]
[334171313,1722807044443,-1900.0,0.000228,8]
[334171314,1722807044452,-1000.0,0.00022813,2]
[334171315,1722807044461,-157.27011436,0.00022813,2]
[334171316,1722807044471,-300.0,0.000229,8]
[334171317,1722807044480,-7500.0,0.00022903,2]
[334171318,1722807044493,-1000.0,0.00022913,2]
[334171319,1722807044504,-129863.7627,0.00022913,2]
[334171320,1722807044513,-1000.0,0.00022913,2]
[334171321,1722807044522,-100000.0,0.00022913,2]
[334171322,1722807044531,-182.03519034,0.00022913,2]
[334171323,1722807044541,-150.0,0.00022927,2]
[334171324,1722807044550,-150.0,0.00022982,2]
[334171325,1722807044559,-33090.38050199,0.00023,5]
[334171327,1722807044568,-13428.37124223,0.00023,2]
[334171329,1722807044578,-200.0,0.00023,2]
[334171330,1722807044587,-150.0,0.00023006,2]
[334171331,1722807044596,-300.0,0.00023013,9]
[334171332,1722807044605,-500.0,0.00023013,9]
[334171333,1722807044614,-500.0,0.00023013,9]
[334171335,1722807044623,-500.0,0.00023013,9]
[334171336,1722807044633,-178.8211223,0.00023013,9]
[334171338,1722807044642,-500.0,0.00023013,9]
[334171340,1722807044651,-500.0,0.00023013,9]
[334171342,1722807044660,-500.0,0.00023013,9]
[334171344,1722807044669,-500.0,0.00023013,9]
[334171345,1722807044678,-500.0,0.00023013,9]
[334171347,1722807044688,-500.0,0.00023013,9]
[334171348,1722807044697,-500.0,0.00023013,9]
[334171349,1722807044706,-500.0,0.00023013,9]
[334171350,1722807044715,-500.0,0.00023013,9]
[334171351,1722807044724,-500.0,0.00023013,9]
[334171352,1722807044734,-500.0,0.00023013,9]
[334171353,1722807044743,-500.0,0.00023013,9]
[334171354,1722807044753,-680.54,0.00023013,9]
[334171355,1722807044762,-500.0,0.00023013,9]
[334171356,1722807044771,-500.0,0.00023013,9]
[334171357,1722807044781,-500.0,0.00023013,9]
[334171358,1722807044791,-500.0,0.00023013,9]
[334171359,1722807044800,-500.0,0.00023013,9]
[334171360,1722807044810,-500.0,0.00023013,9]
[334171361,1722807044819,-500.0,0.00023013,9]
[334171362,1722807044828,-500.0,0.00023013,9]
[334171363,1722807044838,-500.0,0.00023013,9]
[334171364,1722807044847,-500.0,0.00023013,9]
[334171365,1722807044857,-500.0,0.00023013,9]
[334171366,1722807045104,-500.0,0.00023013,9]
[334171367,1722807045120,-500.0,0.00023013,9]
[334171368,1722807045130,-500.0,0.00023013,9]
[334171369,1722807045139,-500.0,0.00023013,9]
[334171370,1722807045148,-500.0,0.00023013,9]
[334171371,1722807045158,-500.0,0.00023013,9]
[334171372,1722807045167,-500.0,0.00023013,9]
[334171373,1722807045178,-500.0,0.00023013,9]
[334171374,1722807045188,-500.0,0.00023013,9]
[334171375,1722807045198,-591.12,0.00023013,9]
[334171376,1722807045208,-1067.85,0.00023013,9]
[334171377,1722807045217,-500.0,0.00023013,9]
[334171378,1722807045227,-500.0,0.00023013,9]
[334171379,1722807045236,-500.0,0.00023013,9]
[334171380,1722807045246,-500.0,0.00023013,9]
[334171381,1722807045257,-500.0,0.00023013,9]
[334171382,1722807045266,-725.5,0.00023013,9]
[334171383,1722807045276,-500.0,0.00023013,9]
[334171384,1722807045286,-558.06954142,0.00023013,9]
[334171385,1722807045295,-707.36,0.00023013,9]
[334171386,1722807045305,-500.0,0.00023013,9]
[334171387,1722807045314,-500.0,0.00023013,9]
[334171388,1722807045323,-500.0,0.00023013,9]
[334171389,1722807045333,-520.48,0.00023013,9]
[334171390,1722807045342,-500.0,0.00023013,9]
[334171391,1722807045351,-500.0,0.00023013,9]
[334171392,1722807045360,-500.0,0.00023013,9]
[334171393,1722807045370,-500.0,0.00023013,9]
[334171394,1722807045379,-500.0,0.00023013,9]
[334171395,1722807045389,-500.0,0.00023013,9]
[334171396,1722807045398,-500.0,0.00023013,9]
[334171397,1722807045407,-500.0,0.00023013,9]
[334171398,1722807045417,-500.0,0.00023013,9]
[334171399,1722807045426,-553.42,0.00023013,9]
[334171400,1722807045436,-500.0,0.00023013,9]
[334171401,1722807045445,-500.0,0.00023013,9]
[334171402,1722807045455,-500.0,0.00023013,9]
[334171403,1722807045464,-500.0,0.00023013,9]
[334171404,1722807045474,-685.62,0.00023013,9]
[334171405,1722807045483,-500.0,0.00023013,9]
[334171406,1722807045493,-500.0,0.00023013,9]
[334171408,1722807045503,-500.0,0.00023013,9]
[334171409,1722807045512,-500.0,0.00023013,9]
[334171410,1722807045522,-500.0,0.00023013,9]
[334171411,1722807045531,-500.0,0.00023013,9]
[334171412,1722807045540,-500.0,0.00023013,9]
[334171413,1722807045550,-500.0,0.00023013,9]
[334171414,1722807045560,-500.0,0.00023013,9]
[334171415,1722807045569,-803.26,0.00023013,9]
[334171416,1722807045579,-724.96,0.00023013,9]
[334171418,1722807045589,-500.0,0.00023013,9]
[334171419,1722807045598,-567.13,0.00023013,9]
[334171420,1722807045607,-500.0,0.00023013,9]
[334171421,1722807045616,-500.0,0.00023013,9]
[334171422,1722807045626,-500.0,0.00023013,9]
[334171423,1722807045635,-500.0,0.00023013,9]
[334171424,1722807045644,-500.0,0.00023013,9]
[334171425,1722807045654,-500.0,0.00023013,9]
[334171426,1722807045663,-500.0,0.00023013,9]
[334171427,1722807045672,-500.0,0.00023013,9]
[334171428,1722807045681,-500.0,0.00023013,9]
[334171429,1722807045691,-500.0,0.00023013,9]
[334171430,1722807045700,-500.0,0.00023013,9]
[334171431,1722807045710,-816.16,0.00023013,9]
[334171432,1722807045720,-500.0,0.00023013,9]
[334171433,1722807045729,-500.0,0.00023013,9]
[334171434,1722807045740,-500.0,0.00023013,9]
[334171435,1722807045749,-500.0,0.00023013,9]
[334171436,1722807045759,-500.0,0.00023013,9]
[334171437,1722807045768,-618.1,0.00023013,9]
[334171438,1722807045778,-500.0,0.00023013,9]
[334171439,1722807045787,-500.0,0.00023013,9]
[334171441,1722807045797,-500.0,0.00023013,9]
[334171443,1722807045806,-500.0,0.00023013,9]
[334171445,1722807045815,-500.0,0.00023013,9]
[334171448,1722807045825,-500.0,0.00023013,9]
[334171451,1722807045834,-500.0,0.00023013,9]
[334171454,1722807045843,-500.0,0.00023013,9]
[334171456,1722807045852,-500.0,0.00023013,9]
[334171458,1722807045861,-500.0,0.00023013,9]
[334171460,1722807045870,-500.0,0.00023013,9]
[334171462,1722807045879,-1387.6,0.00023013,9]
[334171464,1722807045888,-500.0,0.00023013,9]
[334171466,1722807045898,-500.0,0.00023013,9]
[334171468,1722807045907,-164.90505269,0.00023013,9]
[334171470,1722807045917,-500.0,0.00023013,9]
[334171472,1722807045932,-500.0,0.00023013,9]
[334171474,1722807045941,-500.0,0.00023013,9]
[334171476,1722807045951,-683.96,0.00023013,9]
[334171478,1722807045963,-928.15,0.00023013,9]
[334171480,1722807045972,-500.0,0.00023013,9]
[334171481,1722807045981,-560.12,0.00023013,9]
[334171483,1722807045991,-500.0,0.00023013,9]
[334171485,1722807046002,-500.0,0.00023013,9]
[334171487,1722807046011,-500.0,0.00023013,9]
[334171489,1722807046021,-500.0,0.00023013,9]
[334171491,1722807046030,-500.0,0.00023013,9]
[334171493,1722807046039,-500.0,0.00023013,9]
[334171495,1722807046048,-500.0,0.00023013,9]
[334171497,1722807046058,-500.0,0.00023013,9]
[334171499,1722807046067,-500.0,0.00023013,9]
[334171501,1722807046077,-500.0,0.00023013,9]
[334171503,1722807046086,-500.0,0.00023013,9]
[334171505,1722807046095,-500.0,0.00023013,9]
[334171507,1722807046106,-602.24,0.00023013,9]
[334171509,1722807046117,-500.0,0.00023013,9]
[334171511,1722807046126,-500.0,0.00023013,9]
[334171512,1722807046136,-500.0,0.00023013,9]
[334171513,1722807046147,-500.0,0.00023013,9]
[334171514,1722807046157,-500.0,0.00023013,9]
[334171515,1722807046167,-500.0,0.00023013,9]
[334171516,1722807046176,-500.0,0.00023013,9]
[334171517,1722807046186,-500.0,0.00023013,9]
[334171518,1722807046197,-500.0,0.00023013,9]
[334171519,1722807046207,-500.0,0.00023013,9]
[334171520,1722807046217,-749.43,0.00023013,9]
[334171521,1722807046226,-500.0,0.00023013,9]
[334171522,1722807046236,-500.0,0.00023013,9]
[334171523,1722807046246,-500.0,0.00023013,9]
[334171524,1722807046256,-500.0,0.00023013,2]
[334171525,1722807046265,-500.0,0.00023013,9]
[334171526,1722807046275,-500.0,0.00023013,9]
[334171527,1722807046284,-500.0,0.00023013,9]
[334171528,1722807046294,-500.0,0.00023013,9]
[334171529,1722807046303,-500.0,0.00023013,9]
[334171530,1722807046313,-500.0,0.00023013,9]
[334171531,1722807046322,-500.0,0.00023013,9]
[334171532,1722807046331,-500.0,0.00023013,9]
[334171533,1722807046341,-500.0,0.00023013,9]
[334171534,1722807046352,-402.27494412,0.00023013,9]
[334171535,1722807046362,-500.0,0.00023013,9]
[334171536,1722807046372,-594.9574663,0.00023013,9]
[334171537,1722807046383,-500.0,0.00023013,9]
[334171538,1722807046393,-500.0,0.00023013,9]
[334171539,1722807046402,-500.0,0.00023013,9]
[334171540,1722807046412,-500.0,0.00023013,9]
[334171541,1722807046421,-500.0,0.00023013,9]
[334171542,1722807046431,-150.0,0.00023013,9]
[334171543,1722807046440,-671.27,0.00023013,9]
[334171544,1722807046450,-500.0,0.00023013,9]
[334171545,1722807046460,-500.0,0.00023013,9]
[334171546,1722807046470,-500.0,0.00023013,9]
[334171547,1722807046480,-500.0,0.00023013,9]
[334171548,1722807046489,-500.0,0.00023013,9]
[334171549,1722807046500,-500.0,0.00023013,9]
[334171550,1722807046512,-500.0,0.00023013,9]
[334171551,1722807046521,-910.74,0.00023013,9]
[334171553,1722807046531,-500.0,0.00023013,9]
[334171554,1722807046540,-788.24,0.00023013,9]